bitfinex/quotes_ETHUSD_20230116
["timestamp","ask_amount","ask_price","bid_price","bid_amount"]
[1673876671488,26.47541657,1544.0,1543.9,0.07192711]
[1673876672273,27.92749965,1544.0,1543.9,0.07192711]
[1673876672546,26.47541657,1544.0,1543.9,0.07192711]
[1673876672733,27.92761811,1544.0,1543.9,0.07192711]
[1673876674000,26.47541657,1544.0,1543.9,0.07192711]
[1673876676952,21.45122894,1544.0,1543.9,0.07192711]
[1673876677160,8.42173028,1544.0,1543.9,0.94892711]
[1673876677484,8.42173028,1544.0,1543.9,2.21092711]
[1673876677485,1.03427545,1544.0,1543.9,2.21092711]
[1673876677695,2.42076782,1544.1,1543.9,8.68802711]
[1673876677847,2.42076782,1544.1,1543.9,8.74974522]
[1673876678197,2.42076782,1544.1,1544.0,1.262]
[1673876678410,0.96827545,1544.1,1544.0,1.262]
[1673876678853,2.90920345,1544.2,1544.0,2.514]
[1673876679172,0.96827545,1544.2,1544.1,1.262]
[1673876679485,0.96827545,1544.2,1544.1,2.161068]
[1673876679635,2.42076782,1544.2,1544.1,2.161068]
[1673876679845,2.42076782,1544.2,1544.1,1.262]
[1673876683144,1.45249237,1544.2,1544.1,1.262]
[1673876683971,1.45249237,1544.2,1544.0,7.79039811]
[1673876684192,0.96888428,1544.1,1544.0,7.79039811]
[1673876686822,0.96888428,1544.1,1544.0,7.74039811]
[1673876686994,0.96888428,1544.1,1544.0,1.26371811]
[1673876687206,0.96888428,1544.1,1544.0,1.202]
[1673876689234,7.44514428,1544.1,1544.0,1.202]
[1673876689447,8.96363665,1544.1,1544.0,1.202]
[1673876691384,7.99475237,1544.1,1544.0,1.202]
[1673876691866,7.99475237,1544.1,1543.9,4.39564522]
[1673876691867,16.75933523,1544.1,1543.9,4.39564522]
[1673876692078,0.9696513,1544.0,1543.9,4.33392711]
[1673876692416,14.40585237,1544.0,1543.9,1.33392711]
[1673876692623,14.47185237,1544.0,1543.9,0.07192711]
[1673876692841,25.64446951,1544.0,1543.9,0.07192711]
[1673876696158,19.16778951,1544.0,1543.9,0.07192711]
[1673876696789,12.69110951,1544.0,1543.9,0.07192711]
[1673876697633,3.45709574,1544.0,1543.9,0.07192711]
[1673876697840,1.45452952,1544.0,1543.9,7.81102711]
[1673876698100,0.96967216,1544.0,1543.9,7.87274522]
[1673876698680,0.96967216,1544.0,1543.9,14.34984522]
[1673876698889,0.96967216,1544.0,1543.9,16.55816174]
[1673876699344,2.42420168,1544.1,1543.9,16.55816174]
[1673876699556,2.42420168,1544.1,1544.0,1.262]
[1673876699768,1.45452952,1544.1,1544.0,1.262]
[1673876699994,3.39109574,1544.1,1544.0,1.262]
[1673876700730,1.45452952,1544.1,1544.0,7.73868]
[1673876701050,0.96955046,1544.1,1544.0,7.80039811]
[1673876701218,0.96955046,1544.1,1544.0,22.83639063]
[1673876701429,2.42407998,1544.2,1544.0,22.83639063]
[1673876702294,2.42407998,1544.2,1544.1,1.262]
[1673876702623,0.96955046,1544.2,1544.1,7.73826]
[1673876702842,0.96955046,1544.2,1544.1,7.79997811]
[1673876703724,3.39109574,1544.2,1544.1,0.06171811]
[1673876703935,9.55823443,1544.2,1544.1,0.26973835]
[1673876704144,12.0449422,1544.2,1544.1,0.26973835]
[1673876705310,9.62423443,1544.2,1544.1,0.26973835]
[1673876705650,12.0449422,1544.2,1544.1,0.26973835]
[1673876706425,4.42327399,1544.2,1544.1,0.26973835]
[1673876706621,1.45412436,1544.2,1544.1,13.22225835]
[1673876706831,1.45412436,1544.2,1544.1,6.53797811]
[1673876707050,3.39069058,1544.2,1544.1,6.53797811]
[1673876707292,1.93656622,1544.2,1544.1,6.53797811]
[1673876707481,3.39079863,1544.2,1544.1,6.53797811]
[1673876708469,1.45423241,1544.2,1544.1,6.53797811]
[1673876709400,3.39079863,1544.2,1544.1,6.53797811]
[1673876709784,1.93656622,1544.2,1544.1,6.53797811]
[1673876712925,4.35727399,1544.2,1544.1,6.53415849]
[1673876714432,1.93656622,1544.2,1544.1,6.53415849]
[1673876715290,4.35727399,1544.2,1544.1,6.53415849]
[1673876715659,1.93656622,1544.2,1544.1,6.53415849]
[1673876715868,3.39203579,1544.2,1544.1,6.53415849]
[1673876716124,1.45546957,1544.2,1544.1,13.01041849]
[1673876716363,3.39203579,1544.2,1544.1,6.53415849]
[1673876716866,1.45546957,1544.2,1544.1,6.53415849]
[1673876717232,3.39203579,1544.2,1544.1,6.53415849]
[1673876718025,0.97036248,1544.2,1544.1,26.09634912]
[1673876718349,0.97036248,1544.2,1544.1,30.35134912]
[1673876718552,2.42583205,1544.3,1544.1,30.35134912]
[1673876718765,2.42583205,1544.3,1544.2,5.78478678]
[1673876718766,1.45546957,1544.3,1544.2,5.78478678]
[1673876719075,1.45546957,1544.3,1544.2,18.79818489]
[1673876719076,3.39203579,1544.3,1544.2,18.79818489]
[1673876719443,3.39203579,1544.3,1544.2,9.04955811]
[1673876720081,1.93656622,1544.3,1544.2,9.04955811]
[1673876720552,3.39158592,1544.3,1544.2,9.04955811]
[1673876722504,1.4550197,1544.3,1544.2,9.04955811]
[1673876723111,3.39158592,1544.3,1544.2,9.04955811]
[1673876723321,1.4550197,1544.3,1544.2,9.04955811]
[1673876725962,0.96968025,1544.3,1544.2,22.00123811]
[1673876728007,0.96968025,1544.3,1544.2,15.52539811]
[1673876728596,0.96968025,1544.4,1544.2,29.0361487]
[1673876728809,0.96968025,1544.4,1544.3,5.78578678]
[1673876729038,0.96968025,1544.4,1544.3,25.27376489]
[1673876729425,2.52937069,1544.5,1544.3,25.27376489]
[1673876729638,1.07435099,1544.5,1544.4,2.524]
[1673876729882,1.07435099,1544.5,1544.4,21.949]
[1673876730097,1.07435099,1544.5,1544.4,22.01071811]
[1673876732900,1.07435099,1544.5,1544.4,22.43874702]
[1673876736357,1.07435099,1544.5,1544.4,22.43513313]
[1673876736611,1.07435099,1544.5,1544.4,23.69713313]
[1673876737255,0.10467074,1544.5,1544.4,26.96991991]
[1673876737567,0.10467074,1544.5,1544.4,28.21588547]
[1673876740245,0.10467074,1544.5,1544.4,26.96991991]
[1673876748777,0.10467074,1544.5,1544.4,25.7045338]
[1673876748930,0.10467074,1544.5,1544.4,26.9655338]
[1673876750331,0.10467074,1544.5,1544.4,25.7045338]
[1673876751160,0.99467074,1544.5,1544.4,19.91474702]
[1673876751403,4.24594436,1544.5,1544.4,0.48974702]
[1673876751717,4.24594436,1544.5,1544.4,0.42802891]
[1673876751718,4.73194436,1544.5,1544.4,0.42802891]
[1673876752093,7.15265213,1544.5,1544.4,0.2651513]
[1673876752355,5.28208591,1544.5,1544.4,0.2651513]
[1673876752564,6.53108591,1544.5,1544.4,0.2651513]
[1673876754956,13.00566591,1544.5,1544.4,0.2651513]
[1673876755171,13.00806964,1544.5,1544.4,0.2651513]
[1673876755975,8.47187573,1544.5,1544.4,0.2651513]
[1673876756186,6.53348964,1544.5,1544.4,0.2651513]
[1673876756707,5.28448964,1544.5,1544.4,0.2651513]
[1673876759236,3.56243029,1544.5,1544.4,0.2651513]
[1673876759417,2.52724041,1544.5,1544.4,19.6901513]
[1673876759723,3.49646147,1544.5,1544.4,21.00086941]
[1673876759931,2.04253985,1544.5,1544.4,21.00086941]
[1673876761405,2.04253985,1544.5,1544.4,27.02124813]
[1673876761555,1.07331879,1544.5,1544.4,28.28124813]
[1673876764317,2.04253985,1544.5,1544.4,28.28124813]
[1673876764920,2.04453985,1544.5,1544.4,28.27924813]
[1673876765296,2.04253985,1544.5,1544.4,28.28124813]
[1673876766706,1.07331879,1544.5,1544.4,27.03224813]
[1673876768315,1.07531879,1544.5,1544.4,27.03024813]
[1673876768507,1.07331879,1544.5,1544.4,27.03224813]
[1673876773303,1.07331879,1544.5,1544.4,32.55624813]
[1673876773491,1.07331879,1544.5,1544.4,36.10828301]
[1673876773702,1.07331879,1544.5,1544.4,36.10829677]
[1673876774403,1.07331879,1544.5,1544.4,34.16292144]
[1673876775389,1.06944966,1544.5,1544.4,34.16292144]
[1673876775914,1.06944966,1544.5,1544.4,32.55624813]
[1673876776285,1.06944966,1544.5,1544.4,31.29424813]
[1673876776731,1.06944966,1544.5,1544.4,6.80186941]
[1673876776982,2.03867072,1544.5,1544.4,6.80186941]
[1673876777927,3.49259234,1544.5,1544.4,6.80186941]
[1673876778074,4.4619969,1544.5,1544.4,0.32686941]
[1673876778283,3.00807528,1544.5,1544.4,0.2651513]
[1673876778526,5.79069207,1544.5,1544.4,0.16559542]
[1673876778738,7.79482234,1544.5,1544.4,0.16559542]
[1673876780178,14.26940234,1544.5,1544.4,0.16559542]
[1673876781932,5.37171084,1544.5,1544.4,0.16559542]
[1673876782133,4.10971084,1544.5,1544.4,0.16559542]
[1673876782349,4.04371084,1544.5,1544.4,0.16559542]
[1673876782971,5.49685958,1544.5,1544.4,0.16559542]
[1673876783185,5.56285958,1544.5,1544.4,0.16559542]
[1673876783398,4.10971084,1544.5,1544.4,0.16559542]
[1673876783639,4.04371084,1544.5,1544.4,0.16559542]
[1673876784477,5.49673336,1544.5,1544.4,0.16559542]
[1673876784811,5.56273336,1544.5,1544.4,0.16559542]
[1673876785175,3.62460309,1544.5,1544.4,0.16559542]
[1673876785384,3.55860309,1544.5,1544.4,0.16559542]
[1673876789269,5.49673336,1544.5,1544.4,0.16559542]
[1673876789455,3.62460309,1544.5,1544.4,0.16559542]
[1673876789603,3.55860309,1544.5,1544.4,0.16559542]
[1673876789813,5.49673336,1544.5,1544.4,0.16559542]
[1673876790125,5.56273336,1544.5,1544.4,0.16559542]
[1673876790392,3.62460309,1544.5,1544.4,0.16559542]
[1673876790737,5.49673336,1544.5,1544.4,0.16559542]
[1673876790864,4.10971084,1544.5,1544.4,0.16559542]
[1673876791068,12.94140234,1544.5,1544.4,0.16559542]
[1673876791285,18.79285207,1544.5,1544.4,0.16559542]
[1673876791612,25.26743207,1544.5,1544.4,0.16559542]
[1673876793655,25.26743207,1544.5,1544.4,0.10384627]
[1673876794010,25.26743207,1544.5,1544.4,0.04352187]
[1673876794011,25.7491699,1544.5,1544.4,0.04352187]
[1673876794224,49.24547264,1544.5,1544.4,0.04094245]
[1673876794494,45.56180553,1544.5,1544.4,0.04094245]
[1673876794666,42.6569562,1544.5,1544.4,0.04094245]
[1673876796850,41.3949562,1544.5,1544.4,0.04094245]
[1673876797232,44.29980553,1544.5,1544.4,0.04094245]
[1673876798475,44.15943362,1544.5,1544.4,0.04094245]
[1673876798709,44.15930414,1544.5,1544.4,0.04094245]
[1673876798951,42.51158429,1544.5,1544.4,0.01033789]
[1673876799123,46.61768703,1544.5,1544.4,0.01033789]
[1673876801600,22.63197143,1544.0,1543.9,0.07192711]
[1673876801755,28.84004587,1544.0,1543.9,0.07192711]
[1673876801954,26.9034244,1544.0,1543.9,0.07192711]
[1673876802618,28.84004587,1544.0,1543.9,0.07192711]
[1673876802830,27.87069143,1544.0,1543.9,0.07192711]
[1673876803063,19.94151563,1544.0,1543.9,0.07192711]
[1673876803848,21.39401143,1544.0,1543.9,0.07192711]
[1673876804841,19.94151563,1544.0,1543.9,0.07192711]
[1673876806180,20.42771563,1544.0,1543.9,0.07192711]
[1673876806750,20.9129444,1544.0,1543.9,0.07192711]
[1673876806900,20.42698043,1544.0,1543.9,0.07192711]
[1673876807109,26.90366043,1544.0,1543.9,0.07192711]
[1673876807315,28.35615623,1544.0,1543.9,0.07192711]
[1673876807528,26.90366043,1544.0,1543.9,0.07192711]
[1673876807797,28.35615623,1544.0,1543.9,0.07192711]
[1673876808422,27.87375007,1544.0,1543.9,0.07192711]
[1673876808634,29.13575007,1544.0,1543.9,0.04507785]
[1673876808851,30.5850908,1544.0,1543.9,0.04507785]
[1673876809215,22.17178933,1544.0,1543.9,0.04507785]
[1673876809480,23.13797189,1544.0,1543.9,0.04507785]
[1673876811359,21.68863116,1544.0,1543.9,0.04507785]
[1673876811558,21.26619553,1544.0,1543.9,0.04507785]
[1673876812116,20.00519553,1544.0,1543.9,0.04507785]
[1673876812646,17.77701297,1544.0,1543.9,0.04507785]
[1673876812783,18.74319553,1544.0,1543.9,0.04507785]
[1673876814416,17.77701297,1544.0,1543.9,0.04507785]
[1673876814607,17.29081297,1544.0,1543.9,0.04507785]
[1673876814825,18.70369293,1544.0,1543.9,0.04507785]
[1673876815960,18.25699553,1544.0,1543.9,0.04507785]
[1673876816995,18.70385955,1544.0,1543.9,0.04507785]
[1673876819674,18.70385955,1544.0,1543.9,0.00507785]
[1673876820768,20.15320028,1544.0,1543.9,0.00507785]
[1673876821509,7.19984028,1544.0,1543.9,0.88207785]
[1673876821733,0.066,1544.0,1543.9,13.83627785]
[1673876822062,1.03218256,1544.1,1543.9,0.94379596]
[1673876822283,0.96618256,1544.1,1543.9,0.88207785]
[1673876822469,7.44247256,1544.1,1543.9,0.00507785]
[1673876822822,12.34152617,1544.1,1543.9,0.00507785]
[1673876822979,12.78839019,1544.1,1543.9,0.00507785]
[1673876823438,1.47904658,1544.1,1543.9,0.00507785]
[1673876823606,2.41552329,1544.1,1543.9,0.00507785]
[1673876825616,8.89181329,1544.1,1543.9,0.00507785]
[1673876825862,8.95781329,1544.1,1543.9,0.00507785]
[1673876826707,0.96618256,1544.0,1543.9,0.00507785]
[1673876826863,11.59971468,1544.0,1543.9,0.00507785]
[1673876827070,11.66571468,1544.0,1543.9,0.00507785]
[1673876827494,12.15191468,1544.0,1543.9,0.00507785]
[1673876827742,12.15191468,1544.0,1543.9,0.00307785]
[1673876827743,10.70257395,1544.0,1543.9,0.00307785]
[1673876827911,11.6687221,1544.0,1543.9,0.00307785]
[1673876828126,18.1454021,1544.0,1543.9,0.00307785]
[1673876828388,16.69305395,1544.0,1543.9,0.00307785]
[1673876828775,19.11383079,1544.0,1543.9,0.00307785]
[1673876829128,16.69305395,1544.0,1543.9,0.00307785]
[1673876829443,25.59051079,1544.0,1543.9,0.00307785]
[1673876829765,25.16188932,1544.0,1543.9,0.00307785]
[1673876829937,25.64808932,1544.0,1543.9,0.00307785]
[1673876831485,24.14008932,1544.0,1543.9,0.00307785]
[1673876831961,24.14008932,1544.0,1543.9,0.26941626]
[1673876833174,24.14354447,1544.0,1543.9,0.26941626]
[1673876833388,24.14353871,1544.0,1543.9,0.26941626]
[1673876833626,23.65733871,1544.0,1543.9,0.26941626]
[1673876833838,24.58490871,1544.0,1543.9,0.26941626]
[1673876834052,24.13804469,1544.0,1543.9,0.26941626]
[1673876834221,31.96379823,1544.0,1543.9,0.26941626]
[1673876834438,30.07089549,1544.0,1543.9,0.11269798]
[1673876834857,27.16596328,1544.0,1543.9,0.11269798]
[1673876835067,28.57933723,1544.0,1543.9,0.11269798]
[1673876835393,33.57933723,1544.0,1543.9,0.11269798]
[1673876836882,26.6799765,1544.0,1543.9,0.11269798]
[1673876837055,24.59116691,1544.0,1543.9,0.11269798]
[1673876838119,21.6799765,1544.0,1543.9,0.11269798]
[1673876841720,24.95276328,1544.0,1543.9,0.11269798]
[1673876842843,24.95276328,1544.0,1543.9,0.07116679]
[1673876843673,28.34903879,1544.0,1543.9,0.07116679]
[1673876843885,27.86505921,1544.0,1543.9,0.07116679]
[1673876844095,24.95276328,1544.0,1543.9,0.07116679]
[1673876844334,24.95276328,1544.0,1543.9,0.03000812]
[1673876844546,28.34903879,1544.0,1543.9,0.03000812]
[1673876844762,24.95276328,1544.0,1543.9,0.03000812]
[1673876844977,28.34903879,1544.0,1543.9,0.03000812]
[1673876845196,24.95276328,1544.0,1543.9,0.03000812]
[1673876845370,25.43896328,1544.0,1543.9,0.03000812]
[1673876848160,24.95276328,1544.0,1543.9,0.03000812]
[1673876850873,27.86420673,1544.0,1543.9,0.03000812]
[1673876851768,27.86400947,1544.0,1543.9,0.03000812]
[1673876857867,27.86400947,1544.0,1543.9,0.01900873]
[1673876858539,24.95276328,1544.0,1543.9,0.00803062]
[1673876858750,28.34903879,1544.0,1543.9,0.00803062]
[1673876860377,24.95276328,1544.0,1543.9,0.00803062]
[1673876860591,28.34903879,1544.0,1543.9,0.00803062]
[1673876860802,24.95276328,1544.0,1543.9,0.00803062]
[1673876864116,28.34903879,1544.0,1543.9,0.00803062]
[1673876866955,33.34903879,1544.0,1543.9,0.00803062]
[1673876868698,33.34903879,1544.0,1543.9,0.00339362]
[1673876870983,37.45514153,1544.0,1543.9,0.00339362]
[1673876871146,37.45514153,1544.0,1543.9,0.00086056]
[1673876871147,39.56985121,1544.0,1543.9,0.00086056]
[1673876871358,35.46374847,1544.0,1543.9,0.00086056]
[1673876871849,31.46076328,1544.0,1543.9,0.00086056]
[1673876872758,29.95276328,1544.0,1543.7,0.08002964]
[1673876872930,9.39012033,1543.8,1543.7,0.08002964]
[1673876873141,22.41116033,1543.8,1543.7,0.08002964]
[1673876876321,25.68394711,1543.8,1543.7,0.08002964]
[1673876879126,30.87266985,1543.8,1543.7,0.03388302]
[1673876879546,27.96079815,1543.8,1543.6,0.0362306]
[1673876879860,25.61850218,1543.7,1543.6,0.0362306]
[1673876880066,26.1313662,1543.7,1543.6,0.0362306]
[1673876880334,23.2194708,1543.7,1543.6,0.0362306]
[1673876880497,26.95461816,1543.7,1543.6,0.0362306]
[1673876881140,29.86651356,1543.7,1543.6,0.0362306]
[1673876881804,26.95461816,1543.7,1543.6,0.0362306]
[1673876882141,29.86651356,1543.7,1543.6,0.0362306]
[1673876882276,26.95461816,1543.7,1543.6,0.0362306]
[1673876883573,29.86686713,1543.7,1543.6,0.0362306]
[1673876885763,29.87098941,1543.7,1543.6,0.0362306]
[1673876887428,26.95874044,1543.7,1543.6,0.0362306]
[1673876887646,30.35626566,1543.7,1543.6,0.0362306]
[1673876888007,30.35626566,1543.7,1543.5,0.09786327]
[1673876888008,39.55114318,1543.7,1543.5,0.09786327]
[1673876888169,7.88827834,1543.6,1543.5,0.09786327]
[1673876888380,27.38935834,1543.6,1543.5,0.09786327]
[1673876888768,30.30077483,1543.6,1543.5,0.09786327]
[1673876889063,30.66214512,1543.6,1543.5,0.04161734]
[1673876889375,36.27424786,1543.6,1543.5,0.04161734]
[1673876889589,39.67228158,1543.6,1543.5,0.04161734]
[1673876889812,41.27424786,1543.6,1543.5,0.04161734]
[1673876890753,41.03124786,1543.6,1543.5,0.04161734]
[1673876890919,36.92514512,1543.6,1543.5,0.04161734]
[1673876891392,41.03124786,1543.6,1543.5,0.04161734]
[1673876891686,36.92514512,1543.6,1543.5,0.04161734]
[1673876892056,39.83412142,1543.6,1543.5,0.04161734]
[1673876892694,43.94022416,1543.6,1543.5,0.04161734]
[1673876892903,44.58655964,1543.6,1543.5,0.04161734]
[1673876893239,41.67758704,1543.6,1543.5,0.04161734]
[1673876893467,37.5714843,1543.6,1543.5,0.04161734]
[1673876894004,41.67758704,1543.6,1543.5,0.04161734]
[1673876894475,45.07562076,1543.6,1543.5,0.01064362]
[1673876895383,40.96951802,1543.6,1543.5,0.01064362]
[1673876895710,46.33962076,1543.6,1543.5,0.01064362]
[1673876895855,4.63396208,1543.5,1543.4,0.4762831]
[1673876896232,35.01623105,1543.5,1543.4,0.4762831]
[1673876896376,55.00487105,1543.5,1543.4,0.4762831]
[1673876896586,56.55243654,1543.5,1543.4,0.4762831]
[1673876896829,55.00487105,1543.5,1543.4,0.4762831]
[1673876897045,63.07357105,1543.5,1543.4,0.4762831]
[1673876898116,64.62113654,1543.5,1543.4,0.4762831]
[1673876898332,63.07357105,1543.5,1543.4,0.4762831]
[1673876898846,6.3073571,1543.4,1543.3,0.11752164]
[1673876899067,0.07953629,1543.1,1542.9,0.05286819]
[1673876899210,0.96877389,1543.0,1542.9,0.05286819]
[1673876899427,0.97289617,1543.0,1542.9,0.05286819]
[1673876899680,30.65358989,1543.0,1542.9,0.05286819]
[1673876899895,33.99325729,1543.0,1542.9,0.05286819]
[1673876900300,42.44012131,1543.0,1542.9,0.05286819]
[1673876900478,49.47928216,1543.0,1542.9,0.05286819]
[1673876900692,54.47928216,1543.0,1542.9,0.05286819]
[1673876901317,54.55972537,1543.0,1542.9,0.05286819]
[1673876901751,52.13779065,1543.0,1542.9,0.05286819]
[1673876902013,53.58937804,1543.0,1542.9,0.05286819]
[1673876902277,52.62217759,1543.0,1542.9,0.05286819]
[1673876902723,56.94138743,1543.0,1542.9,0.05286819]
[1673876902933,61.2500095,1543.0,1542.8,0.02133492]
[1673876903254,61.2500095,1543.0,1542.7,0.14537536]
[1673876903255,23.90736159,1542.9,1542.7,0.14537536]
[1673876903459,64.62087662,1542.8,1542.7,0.14537536]
[1673876903672,69.01007982,1542.8,1542.7,0.14537536]
[1673876903901,73.20933878,1542.8,1542.7,0.14537536]
[1673876904204,6.92750423,1542.6,1542.1,0.06171811]
[1673876904447,8.0,1542.4,1541.9,1.2550833]
[1673876904617,22.72487678,1542.3,1541.9,1.2570833]
[1673876904826,22.79087678,1542.3,1541.9,1.2570833]
[1673876905085,2.27908768,1542.2,1541.9,1.2570833]
[1673876905299,6.48445,1542.2,1541.9,1.2570833]
[1673876905623,0.066,1542.2,1542.1,1.40637536]
[1673876905789,13.0341,1542.3,1542.1,1.40637536]
[1673876905998,13.0341,1542.3,1542.1,0.45627536]
[1673876906874,13.03822228,1542.3,1542.1,0.45627536]
[1673876907196,13.03822228,1542.3,1542.1,0.19327536]
[1673876907356,19.52229228,1542.3,1542.1,0.19327536]
[1673876908421,6.55415228,1542.3,1542.1,0.19327536]
[1673876908623,0.066,1542.3,1542.2,1.264]
[1673876908979,0.066,1542.3,1542.2,2.521]
[1673876908980,0.002,1542.3,1542.2,2.521]
[1673876909150,5.0,1542.4,1542.2,2.521]
[1673876909365,5.066,1542.4,1542.3,1.264]
[1673876909552,0.066,1542.4,1542.3,1.264]
[1673876909761,12.9668,1542.4,1542.3,1.264]
[1673876910030,13.0328,1542.4,1542.3,1.264]
[1673876911075,19.5162,1542.4,1542.3,1.264]
[1673876912601,22.11655023,1542.4,1542.2,1.257]
[1673876913298,13.0328,1542.4,1542.2,1.257]
[1673876913455,6.5494,1542.4,1542.3,1.264]
[1673876913663,0.066,1542.4,1542.3,1.264]
[1673876914106,19.51988228,1542.5,1542.3,1.264]
[1673876914272,6.4834,1542.4,1542.3,1.264]
[1673876914489,6.5494,1542.4,1542.3,1.264]
[1673876915530,19.5162,1542.4,1542.3,1.264]
[1673876915690,22.11655023,1542.4,1542.3,1.264]
[1673876915895,22.11655023,1542.4,1542.1,1.47537536]
[1673876916115,22.11655023,1542.4,1542.1,0.14537536]
[1673876916116,25.38933701,1542.4,1542.1,0.14537536]
[1673876916435,3.27278678,1542.3,1542.1,0.14537536]
[1673876916642,19.45272,1542.2,1542.1,0.14537536]
[1673876916871,21.79127068,1542.2,1542.1,0.14537536]
[1673876919306,6.55024,1542.2,1542.1,0.14537536]
[1673876919835,13.03448,1542.2,1542.1,0.14537536]
[1673876922301,19.51872,1542.2,1542.1,0.14537536]
[1673876922968,13.03448,1542.2,1542.1,0.14537536]
[1673876923197,0.066,1542.2,1542.1,1.40637536]
[1673876923422,13.03398,1542.3,1542.1,1.40637536]
[1673876923565,13.03398,1542.3,1542.2,1.253]
[1673876925996,0.066,1542.3,1542.2,1.39283754]
[1673876926209,0.066,1542.4,1542.2,2.64483754]
[1673876926420,6.55325228,1542.5,1542.3,1.26]
[1673876926684,6.55325228,1542.5,1542.4,1.264]
[1673876926831,6.55325228,1542.5,1542.4,1.001]
[1673876928037,6.55325228,1542.5,1542.4,0.738]
[1673876928291,8.77652601,1542.5,1542.3,1.264]
[1673876929034,8.77652601,1542.5,1542.3,1.259]
[1673876929273,15.25950601,1542.5,1542.3,1.259]
[1673876929674,13.03608228,1542.5,1542.3,1.259]
[1673876930131,6.54898,1542.5,1542.3,1.259]
[1673876931228,13.99864039,1542.5,1542.3,1.259]
[1673876932230,15.46857178,1542.4,1542.2,1.262]
[1673876932445,14.00000039,1542.4,1542.2,1.262]
[1673876933041,20.48379039,1542.4,1542.2,1.262]
[1673876933934,1.53617855,1542.3,1542.2,1.262]
[1673876934147,8.98667894,1542.3,1542.2,1.262]
[1673876934484,25.297228,1542.3,1542.1,0.21137536]
[1673876934629,8.11493009,1542.1,1542.0,1.265]
[1673876934838,10.68536869,1542.1,1542.0,1.265]
[1673876935112,13.19602532,1542.1,1542.0,1.265]
[1673876936768,19.68068532,1542.1,1542.0,1.265]
[1673876937169,19.68068532,1542.1,1541.9,1.2640833]
[1673876937358,18.14450677,1542.1,1541.9,1.2640833]
[1673876937569,8.98135698,1542.0,1541.9,1.2640833]
[1673876937779,11.80908987,1542.0,1541.9,1.2140833]
[1673876937990,13.26148743,1542.0,1541.8,1.277]
[1673876938257,2.49700974,1541.9,1541.8,1.277]
[1673876938445,18.21807774,1542.0,1541.8,1.277]
[1673876938634,24.70349774,1542.0,1541.8,1.277]
[1673876939064,2.49690346,1541.9,1541.8,1.277]
[1673876939676,2.4974306,1541.9,1541.8,1.277]
[1673876941254,2.4974306,1541.9,1541.8,1.227]
[1673876941718,11.60619743,1541.9,1541.8,1.227]
[1673876942043,13.12871727,1541.9,1541.8,1.227]
[1673876942401,11.67631971,1541.9,1541.8,1.227]
[1673876943032,13.12871727,1541.9,1541.8,1.227]
[1673876943242,11.67631971,1541.9,1541.8,1.227]
[1673876943665,13.12871727,1541.9,1541.7,1.261]
[1673876943875,3.81202356,1541.8,1541.7,1.261]
[1673876944122,10.29794356,1541.8,1541.7,1.261]
[1673876944457,10.36394356,1541.8,1541.7,1.261]
[1673876944610,8.83477301,1541.8,1541.7,1.211]
[1673876944821,7.86479173,1541.8,1541.7,1.211]
[1673876945578,14.35071173,1541.8,1541.7,1.211]
[1673876945809,16.84950794,1541.8,1541.7,1.211]
[1673876946192,15.32069301,1541.8,1541.7,1.211]
[1673876946403,20.83663173,1541.8,1541.7,1.211]
[1673876946653,20.83663173,1541.8,1541.6,1.2705003]
[1673876947514,14.35071173,1541.8,1541.6,1.2705003]
[1673876948138,14.35071173,1541.8,1541.6,1.2205003]
[1673876948582,20.83663173,1541.8,1541.6,1.2205003]
[1673876948786,2.08366317,1541.7,1541.6,1.2205003]
[1673876948997,8.57000317,1541.7,1541.6,1.2205003]
[1673876949338,21.60868317,1541.7,1541.6,1.2205003]
[1673876949916,15.12234317,1541.7,1541.6,1.2205003]
[1673876950177,13.03868,1541.7,1541.6,1.2205003]
[1673876951514,13.03868,1541.7,1541.6,1.1705003]
[1673876953623,22.02623678,1541.7,1541.6,1.512]
[1673876953819,22.02623678,1541.7,1541.5,1.27708678]
[1673876954026,8.68938368,1541.6,1541.5,1.27708678]
[1673876954261,8.75538368,1541.6,1541.3,19.79440034]
[1673876954473,2.26862368,1541.6,1541.5,1.505]
[1673876954699,6.55646228,1541.7,1541.5,1.505]
[1673876954869,6.55646228,1541.7,1541.6,1.512]
[1673876955057,0.066,1541.7,1541.6,1.512]
[1673876955373,26.67511795,1541.9,1541.6,1.512]
[1673876955586,26.67511795,1541.9,1541.7,1.512]
[1673876955796,18.3801213,1541.9,1541.7,1.512]
[1673876956046,8.32393213,1541.8,1541.7,1.512]
[1673876956273,8.38993213,1541.8,1541.7,1.512]
[1673876958108,8.38993213,1541.8,1541.5,5.93429266]
[1673876958358,8.38993213,1541.8,1541.7,1.512]
[1673876958895,8.87683213,1541.8,1541.7,1.512]
[1673876959320,14.87585213,1541.8,1541.7,1.512]
[1673876959802,18.14863891,1541.8,1541.6,1.5]
[1673876960018,7.58414717,1541.7,1541.6,1.5]
[1673876960241,21.33988389,1541.7,1541.6,1.5]
[1673876960636,8.36720389,1541.7,1541.6,1.5]
[1673876961468,14.85354389,1541.7,1541.6,1.5]
[1673876961947,21.33988389,1541.7,1541.6,1.5]
[1673876962264,24.61267067,1541.7,1541.6,1.5]
[1673876962416,24.61267067,1541.7,1541.5,1.512]
[1673876962626,2.46126707,1541.6,1541.5,1.512]
[1673876962893,21.92154707,1541.6,1541.3,11.90820034]
[1673876963067,3.27278678,1541.5,1541.3,2.30130034]
[1673876963320,12.9752,1541.4,1541.1,30.376]
[1673876963515,19.53292228,1541.4,1541.1,0.066]
[1673876963895,21.95919131,1541.4,1541.0,1.77982885]
[1673876964043,21.95919131,1541.4,1541.0,1.71382885]
[1673876965194,22.44619131,1541.4,1541.0,1.71382885]
[1673876965409,25.71897809,1541.4,1541.0,1.71382885]
[1673876965757,25.71897809,1541.4,1541.0,0.20182885]
[1673876965979,6.48845,1541.2,1541.0,0.20182885]
[1673876966306,6.55445,1541.2,1541.0,0.20182885]
[1673876966822,22.80825906,1541.2,1541.0,0.20182885]
[1673876968042,3.27278678,1541.1,1541.0,0.20182885]
[1673876968264,22.73939678,1541.1,1541.0,0.20182885]
[1673876968617,19.73342369,1541.1,1541.0,0.20182885]
[1673876968828,19.24632369,1541.1,1541.0,0.20182885]
[1673876969727,25.73519369,1541.1,1541.0,0.20182885]
[1673876969937,26.22229369,1541.1,1541.0,0.20182885]
[1673876971203,37.42359369,1541.1,1541.0,0.20182885]
[1673876971473,3.74235937,1541.0,1540.5,0.066]
[1673876971627,21.65594715,1540.9,1540.4,0.0075003]
[1673876971837,21.65594715,1540.9,1540.2,0.80722963]
[1673876971838,41.6494331,1540.8,1540.2,0.80722963]
[1673876972046,3.27278678,1540.7,1540.2,0.80722963]
[1673876972314,9.76388678,1540.6,1540.2,0.80722963]
[1673876972469,16.80828678,1540.6,1540.2,0.80722963]